[Event "FIDE WCCC G12 2018"]
[Site "Santiago de Compostela"]
[Date "2018.11.14"]
[Round "10"]
[White "Ivanova, Dilyana"]
[Black "Nasibova, Narmin"]
[Result "1-0"]
[ECO "B35"]
[WhiteElo "1775"]
[BlackElo "1331"]
[Annotator "NA RC"]
[PlyCount "111"]
[EventDate "2018.11.04"]
[EventType "swiss"]
[EventCountry "ESP"]
[SourceTitle "playchess.com"]
[Source "ChessBase"]
[SourceQuality "1"]
[TimeControl "40/5400+30:1800+30"]

1. e4 {[%emt 0:00:00]} c5 {[%emt 0:00:00]} 2. Nf3 {[%emt 0:00:00]} Nc6 {[%emt 0:00:00]} 3. d4 {[%emt 0:00:00]} cxd4 {[%emt 0:00:00]} 4. Nxd4 {[%emt 0:00:00]} g6 {[%emt 0:00:07]} 5. Nc3 {[%emt 0:00:00]} Bg7 {[%emt 0:00:10]} 6. Be3 {[%emt 0:00:02]} Nf6 {[%emt 0:00:15]} 7. Bc4 {[%emt 0:00:20]} O-O {[%emt 0:00:18]} 8. O-O {[%emt 0:00:11]} Nxe4 {[%emt 0:07:15]} 9. Bxf7+ {[%emt 0:02:53]} Rxf7 {[%emt 0:00:37]} 10. Nxe4 {[%emt 0:00:27]} Nxd4 {[%emt 0:12:41]} 11. Bxd4 {[%emt 0:00:14]} e5 {[%emt 0:06:59]} 12. Bc5 {[%emt 0:02:21]} d5 {[%emt 0:41:59]} 13. Nd6 {[%emt 0:03:13]} Be6 {[%emt 0:05:24]} 14. Nxf7 {[%emt 0:01:30]} Bxf7 {[%emt 0:00:54]} 15. Qd2 {[%emt 0:03:32]} b6 {[%emt 0:05:52]} 16. Be3 {[%emt 0:01:38]} Rc8 {[%emt 0:03:36]} 17. c3 {[%emt 0:02:25]} Rc4 {[%emt 0:06:48]} 18. Bh6 {[%emt 0:04:12]} Bh8 {[%emt 0:01:53]} 19. Rae1 {[%emt 0:02:42]} Qc8 {[%emt 0:02:04]} 20. Qg5 {[%emt 0:04:08]} Rg4 {[%emt 0:02:18]} 21. Qe3 {[%emt 0:03:18]} Rc4 {[%emt 0:00:42]} 22. h3 {[%emt 0:01:39]} Qf5 {[%emt 0:00:30]} 23. a3 {[%emt 0:04:01]} Re4 {[%emt 0:00:30]} 24. Qg3 {[%emt 0:02:09]} Rc4 {[%emt 0:00:33]} 25. Re3 {[%emt 0:03:29]} Rc8 {[%emt 0:00:33]} 26. Rfe1 {[%emt 0:05:49]} Qh5 {[%emt 0:00:28]} 27. Bg5 {[%emt 0:01:30]} h6 {[%emt 0:00:29]} 28. Be7 {[%emt 0:00:37]} Rc6 {[%emt 0:00:31]} 29. f3 {[%emt 0:06:28]} Qf5 {[%emt 0:00:28]} 30. Qg4 {[%emt 0:04:17]} Qxg4 {[%emt 0:00:33]} 31. hxg4 {[%emt 0:00:08]} g5 {[%emt 0:00:23]} 32. a4 {[%emt 0:03:26]} Bg6 {[%emt 0:00:33]} 33. Kf2 {[%emt 0:03:47]} Kf7 {[%emt 0:00:33]} 34. Ba3 {[%emt 0:00:39]} Bc2 {[%emt 0:00:32]} 35. a5 {[%emt 0:02:06]} b5 {[%emt 0:00:30]} 36. Bb4 {[%emt 0:00:33]} Bb3 {[%emt 0:00:26]} 37. R3e2 {[%emt 0:02:23]} Bc4 {[%emt 0:00:31]} 38. Rd2 {[%emt 0:00:22]} Bb3 {[%emt 0:00:31]} 39. Ra1 {[%emt 0:00:54]} Bc4 {[%emt 0:00:30]} 40. Ra3 {[%emt 0:00:00]} d4 {[%emt 0:00:00]} 41. cxd4 {[%emt 0:02:04]} exd4 {[%emt 0:01:32]} 42. b3 {[%emt 0:00:50]} Bd5 {[%emt 0:06:21]} 43. Rd3 {[%emt 0:02:40]} Rc2+ {[%emt 0:05:42]} 44. Kf1 {[%emt 0:04:31]} Rc1+ {[%emt 0:13:18]} 45. Ke2 {[%emt 0:01:07]} Rc2+ {[%emt 0:01:34]} 46. Rd2 {[%emt 0:01:45]} Rc1 {[%emt 0:01:08]} 47. Kd3 {[%emt 0:01:21]} Be5 {[%emt 0:03:47]} 48. Re2 {[%emt 0:02:17]} Bc4+ {[%emt 0:01:08]} 49. bxc4 {[%emt 0:01:48]} bxc4+ {[%emt 0:00:11]} 50. Ke4 {[%emt 0:02:52]} d3 {[%emt 0:00:40]} 51. Re1 {[%emt 0:01:19]} Bf4 {[%emt 0:00:41]} 52. Rxc1 {[%emt 0:00:57]} Bxc1 {[%emt 0:00:13]} 53. Ra2 {[%emt 0:00:20]} Ke6 {[%emt 0:00:45]} 54. Bd2 {[%emt 0:00:38]} Bxd2 {[%emt 0:00:25]} 55. Rxd2 {[%emt 0:00:06]} c3 {[%emt 0:00:30]} 56. Rxd3 {[%emt 0:00:04] Kd5+} 1-0

[Event "FIDE WCCC G12 2018"]
[Site "Santiago de Compostela"]
[Date "2018.11.14"]
[Round "10"]
[White "Eswaran, Aksithi"]
[Black "Zhai, Pinran"]
[Result "1/2-1/2"]
[ECO "B72"]
[WhiteElo "1760"]
[BlackElo "1558"]
[Annotator "NA RC"]
[PlyCount "105"]
[EventDate "2018.11.04"]
[EventType "swiss"]
[EventCountry "ESP"]
[SourceTitle "playchess.com"]
[Source "ChessBase"]
[SourceQuality "1"]
[TimeControl "40/5400+30:1800+30"]

1. e4 {[%emt 0:00:00]} c5 {[%emt 0:00:00]} 2. Nf3 {[%emt 0:00:00]} d6 {[%emt 0:00:33]} 3. d4 {[%emt 0:00:00]} cxd4 {[%emt 0:00:05]} 4. Nxd4 {[%emt 0:00:00]} Nf6 {[%emt 0:00:03]} 5. Nc3 {[%emt 0:00:00]} g6 {[%emt 0:00:02]} 6. Be2 {[%emt 0:00:57]} Bg7 {[%emt 0:00:08]} 7. Be3 {[%emt 0:00:44]} Nc6 {[%emt 0:00:11]} 8. Qd2 {[%emt 0:01:50]} Ng4 {[%emt 0:01:54]} 9. Bxg4 {[%emt 0:00:55]} Bxg4 {[%emt 0:00:33]} 10. f3 {[%emt 0:00:22]} Bd7 {[%emt 0:00:40]} 11. O-O-O {[%emt 0:00:32]} Ne5 {[%emt 0:04:58]} 12. Qe2 {[%emt 0:15:46]} Rc8 {[%emt 0:00:43]} 13. Nb3 {[%emt 0:04:44]} Nc6 {[%emt 0:09:47]} 14. Bd2 {[%emt 0:11:29]} Na5 {[%emt 0:19:34]} 15. Kb1 {[%emt 0:07:58]} Nc4 {[%emt 0:01:13]} 16. Qf2 {[%emt 0:09:08]} Nxd2+ {[%emt 0:00:36]} 17. Qxd2 {[%emt 0:00:16]} Bxc3 {[%emt 0:02:29]} 18. bxc3 {[%emt 0:00:22]} Qc7 {[%emt 0:00:01]} 19. Kb2 {[%emt 0:00:38]} O-O {[%emt 0:01:35]} 20. h4 {[%emt 0:01:11]} a5 {[%emt 0:01:35]} 21. a3 {[%emt 0:04:45]} a4 {[%emt 0:00:37]} 22. Nd4 {[%emt 0:00:22]} Qb6+ {[%emt 0:00:12]} 23. Ka2 {[%emt 0:00:25]} Qc5 {[%emt 0:00:19]} 24. h5 {[%emt 0:14:44]} Qe5 {[%emt 0:04:56]} 25. hxg6 {[%emt 0:00:57]} fxg6 {[%emt 0:01:09]} 26. Rh6 {[%emt 0:05:54]} Rf7 {[%emt 0:01:11]} 27. Rb1 {[%emt 0:04:16]} b5 {[%emt 0:01:51]} 28. Qd3 {[%emt 0:00:45]} Rc4 {[%emt 0:01:31]} 29. Rb4 {[%emt 0:01:44]} Qg5 {[%emt 0:02:08]} 30. Rh1 {[%emt 0:02:00]} Qxg2 {[%emt 0:00:31]} 31. Rhb1 {[%emt 0:01:24]} Rc5 {[%emt 0:07:43]} 32. Ka1 {[%emt 0:05:24]} h5 {[%emt 0:00:29]} 33. Nxb5 {[%emt 0:03:34]} Rxf3 {[%emt 0:00:46]} 34. Qd4 {[%emt 0:00:21]} Bxb5 {[%emt 0:02:04]} 35. Rxb5 {[%emt 0:00:30]} Rxb5 {[%emt 0:00:30]} 36. Rxb5 {[%emt 0:00:30]} Rf6 {[%emt 0:04:22]} 37. Qd5+ {[%emt 0:01:43]} Kg7 {[%emt 0:00:14]} 38. Rb8 {[%emt 0:00:33]} Qg1+ {[%emt 0:01:44]} 39. Ka2 {[%emt 0:00:14]} Rf7 {[%emt 0:00:21]} 40. e5 {[%emt 0:00:00]} Qf2 {[%emt 0:00:00]} 41. exd6 {[%emt 0:02:18]} exd6 {[%emt 0:01:15]} 42. Qe4 {[%emt 0:01:59]} Qf4 {[%emt 0:02:11]} 43. Qd3 {[%emt 0:01:10]} Qe5 {[%emt 0:00:32]} 44. Rb6 {[%emt 0:01:59]} Rd7 {[%emt 0:05:47]} 45. Rb4 {[%emt 0:03:21]} Rc7 {[%emt 0:01:18]} 46. Rxa4 {[%emt 0:01:53]} Qxc3 {[%emt 0:01:49]} 47. Ra7 {[%emt 0:01:01]} Qc5 {[%emt 0:00:09]} 48. Rxc7+ {[%emt 0:00:38]} Qxc7 {[%emt 0:00:02]} 49. Qd4+ {[%emt 0:00:23]} Kh7 {[%emt 0:00:01]} 50. Qe4 {[%emt 0:00:19]} Kg7 {[%emt 0:01:49]} 51. Qd4+ {[%emt 0:02:30]} Kh7 {[%emt 0:00:11]} 52. Qe4 {[%emt 0:04:29]} Kg7 {[%emt 0:00:46]} 53. Qd4+ {[%emt 0:00:11]} 1/2-1/2

[Event "FIDE WCCC G12 2018"]
[Site "Santiago de Compostela"]
[Date "2018.11.14"]
[Round "10"]
[White "Savitha Shri B"]
[Black "Dakic, Marta"]
[Result "1-0"]
[ECO "C41"]
[WhiteElo "1745"]
[BlackElo "1756"]
[Annotator "NA RC"]
[PlyCount "81"]
[EventDate "2018.11.04"]
[EventType "swiss"]
[EventCountry "ESP"]
[SourceTitle "playchess.com"]
[Source "ChessBase"]
[SourceQuality "1"]
[TimeControl "40/5400+30:1800+30"]

1. e4 {[%emt 0:00:00]} e5 {[%emt 0:00:00]} 2. Nf3 {[%emt 0:00:00]} d6 {[%emt 0:00:00]} 3. d4 {[%emt 0:00:00]} exd4 {[%emt 0:00:00]} 4. Nxd4 {[%emt 0:00:00]} Nf6 {[%emt 0:00:03]} 5. Nc3 {[%emt 0:00:00]} Be7 {[%emt 0:00:14]} 6. Bc4 {[%emt 0:00:07]} O-O {[%emt 0:00:43]} 7. O-O {[%emt 0:00:12]} Re8 {[%emt 0:00:39]} 8. f4 {[%emt 0:02:30]} Bf8 {[%emt 0:00:48]} 9. Nf3 {[%emt 0:05:52]} Be6 {[%emt 0:08:55]} 10. Bxe6 {[%emt 0:00:43]} Rxe6 {[%emt 0:01:31]} 11. e5 {[%emt 0:04:33]} Nfd7 {[%emt 0:00:40]} 12. Ng5 {[%emt 0:00:06]} Rh6 {[%emt 0:09:04]} 13. Qd5 {[%emt 0:00:45]} Qe8 {[%emt 0:17:03]} 14. Qxb7 {[%emt 0:00:11]} Nb6 {[%emt 0:00:04]} 15. Nd5 {[%emt 0:02:53]} Qd7 {[%emt 0:09:35]} 16. Nxb6 {[%emt 0:00:24]} cxb6 {[%emt 0:00:29]} 17. Qxa8 {[%emt 0:01:17]} Nc6 {[%emt 0:00:13]} 18. b4 {[%emt 0:01:14]} dxe5 {[%emt 0:23:32]} 19. Nxf7 {[%emt 0:03:49]} Qd4+ {[%emt 0:04:27]} 20. Kh1 {[%emt 0:00:24]} Rf6 {[%emt 0:00:51]} 21. Bb2 {[%emt 0:01:05]} Qxb2 {[%emt 0:00:50]} 22. fxe5 {[%emt 0:01:50]} Nxe5 {[%emt 0:05:16]} 23. Nxe5 {[%emt 0:00:25]} Qxe5 {[%emt 0:00:05]} 24. Rad1 {[%emt 0:00:44]} Qe2 {[%emt 0:04:18]} 25. Qd5+ {[%emt 0:00:28]} Kh8 {[%emt 0:00:05]} 26. Rxf6 {[%emt 0:00:30]} gxf6 27. Qf3 {[%emt 0:00:15]} Qxf3 {[%emt 0:00:27]} 28. gxf3 {[%emt 0:00:02]} Bxb4 {[%emt 0:00:07]} 29. Rd7 {[%emt 0:00:06]} a5 {[%emt 0:00:14]} 30. a4 {[%emt 0:00:07]} Bc5 {[%emt 0:00:14]} 31. Kg2 {[%emt 0:00:05]} Kg8 {[%emt 0:00:41]} 32. c4 {[%emt 0:00:15]} h6 {[%emt 0:01:56]} 33. Kg3 {[%emt 0:00:05]} Be3 {[%emt 0:00:22]} 34. Kg4 {[%emt 0:00:09]} Kf8 {[%emt 0:00:47]} 35. Kf5 {[%emt 0:00:04]} Ke8 {[%emt 0:01:27]} 36. Rd3 {[%emt 0:00:28]} Bc5 {[%emt 0:00:55]} 37. Kxf6 {[%emt 0:00:06]} Bb4 {[%emt 0:00:38]} 38. f4 {[%emt 0:00:11]} Bc5 {[%emt 0:00:25]} 39. f5 {[%emt 0:00:06]} Bg1 {[%emt 0:00:00]} 40. Kg7 {[%emt 0:00:00]} Bxh2 {[%emt 0:00:00]} 41. f6 {[%emt 0:00:24]} 1-0

[Event "FIDE WCCC G12 2018"]
[Site "Santiago de Compostela"]
[Date "2018.11.14"]
[Round "10"]
[White "Cornileau, Juliette"]
[Black "Mahi Amit Doshi"]
[Result "1-0"]
[ECO "B13"]
[WhiteElo "1740"]
[BlackElo "1515"]
[Annotator "NA RC"]
[PlyCount "58"]
[EventDate "2018.11.04"]
[EventType "swiss"]
[EventCountry "ESP"]
[SourceTitle "playchess.com"]
[Source "ChessBase"]
[SourceQuality "1"]
[TimeControl "40/5400+30:1800+30"]

1. e4 {[%emt 0:00:00]} c6 {[%emt 0:00:00]} 2. d4 {[%emt 0:00:00]} d5 {[%emt 0:00:00]} 3. exd5 {[%emt 0:00:00]} cxd5 {[%emt 0:00:00]} 4. Bd3 {[%emt 0:00:00]} Nc6 {[%emt 0:00:00]} 5. c3 {[%emt 0:00:02]} Qc7 {[%emt 0:00:04]} 6. Ne2 {[%emt 0:06:26]} Bg4 {[%emt 0:00:16]} 7. O-O {[%emt 0:03:35]} e6 {[%emt 0:01:19]} 8. f3 {[%emt 0:05:36]} Bh5 {[%emt 0:00:42]} 9. Bf4 {[%emt 0:01:01]} Bd6 {[%emt 0:04:56]} 10. Bxd6 {[%emt 0:00:20]} Qxd6 {[%emt 0:00:04]} 11. Nd2 {[%emt 0:06:26]} Nf6 {[%emt 0:00:36]} 12. Ng3 {[%emt 0:06:24]} Bg6 {[%emt 0:02:15]} 13. Qe2 {[%emt 0:00:59]} Qf4 {[%emt 0:03:43]} 14. Nb3 {[%emt 0:09:51]} Bxd3 {[%emt 0:01:01]} 15. Qxd3 {[%emt 0:00:14]} O-O {[%emt 0:01:00]} 16. Rfe1 {[%emt 0:12:04]} Rfe8 {[%emt 0:03:19]} 17. Re2 {[%emt 0:09:49]} e5 {[%emt 0:01:12]} 18. dxe5 {[%emt 0:02:15]} Nxe5 {[%emt 0:00:58]} 19. Qd4 {[%emt 0:02:11]} Qxd4+ {[%emt 0:09:49]} 20. Nxd4 {[%emt 0:01:06]} Nd3 {[%emt 0:03:49]} 21. Rd2 {[%emt 0:02:46]} Nf4 {[%emt 0:03:47]} 22. Rad1 {[%emt 0:04:44]} h5 {[%emt 0:01:03]} 23. Nge2 {[%emt 0:01:55]} Nxe2+ {[%emt 0:04:38]} 24. Nxe2 {[%emt 0:00:29]} Re5 {[%emt 0:02:51]} 25. Nf4 {[%emt 0:07:08]} Rae8 {[%emt 0:00:42]} 26. Kf1 {[%emt 0:01:43]} Rd8 {[%emt 0:06:34]} 27. c4 {[%emt 0:03:32]} Kf8 {[%emt 0:01:20]} 28. Nxd5 {[%emt 0:02:49]} Nxd5 29. cxd5 Rdxd5 1-0

[Event "FIDE WCCC G12 2018"]
[Site "Santiago de Compostela"]
[Date "2018.11.14"]
[Round "10"]
[White "Francisco Guecamburu, Candela Be"]
[Black "Baalla, Nura"]
[Result "1/2-1/2"]
[ECO "C14"]
[WhiteElo "1725"]
[BlackElo "1565"]
[Annotator "NA RC"]
[PlyCount "86"]
[EventDate "2018.11.04"]
[EventType "swiss"]
[EventCountry "ESP"]
[SourceTitle "playchess.com"]
[Source "ChessBase"]
[SourceQuality "1"]
[TimeControl "40/5400+30:1800+30"]

1. e4 {[%emt 0:00:00]} e6 {[%emt 0:00:00]} 2. d4 {[%emt 0:00:00]} d5 {[%emt 0:00:00]} 3. Nc3 {[%emt 0:00:00]} Nf6 {[%emt 0:00:00]} 4. Bg5 {[%emt 0:00:00]} Be7 {[%emt 0:00:00]} 5. e5 {[%emt 0:00:00]} Nfd7 {[%emt 0:00:00]} 6. Bxe7 {[%emt 0:00:12]} Qxe7 {[%emt 0:00:00]} 7. f4 {[%emt 0:00:18]} a6 {[%emt 0:00:26]} 8. Nf3 {[%emt 0:00:24]} c5 {[%emt 0:01:30]} 9. Qd2 {[%emt 0:00:36]} Nc6 {[%emt 0:00:54]} 10. dxc5 {[%emt 0:00:23]} Qxc5 {[%emt 0:06:57]} 11. O-O-O {[%emt 0:00:29]} b5 {[%emt 0:02:24]} 12. Kb1 {[%emt 0:01:11]} Nb6 {[%emt 0:03:06]} 13. Nd4 {[%emt 0:07:22]} Nc4 {[%emt 0:10:15]} 14. Bxc4 {[%emt 0:01:09]} bxc4 {[%emt 0:00:56]} 15. Na4 {[%emt 0:07:46]} Qxd4 {[%emt 0:01:02]} 16. Qxd4 {[%emt 0:00:16]} Nxd4 {[%emt 0:00:01]} 17. Rxd4 {[%emt 0:00:02]} Rb8 {[%emt 0:00:31]} 18. Nc3 {[%emt 0:02:15]} Kd7 {[%emt 0:05:06]} 19. Rhd1 {[%emt 0:01:29]} Kc6 {[%emt 0:01:16]} 20. Ne2 {[%emt 0:03:46]} Bd7 {[%emt 0:04:02]} 21. R4d2 {[%emt 0:03:03]} f6 {[%emt 0:03:36]} 22. Nd4+ {[%emt 0:13:41]} Kc7 {[%emt 0:00:39]} 23. Re2 {[%emt 0:01:31]} Rb6 {[%emt 0:05:44]} 24. Rde1 {[%emt 0:00:18]} f5 {[%emt 0:02:02]} 25. c3 {[%emt 0:00:30]} a5 {[%emt 0:00:45]} 26. Rf2 {[%emt 0:01:42]} a4 {[%emt 0:01:30]} 27. Ree2 {[%emt 0:00:10]} Rhb8 {[%emt 0:00:32]} 28. g3 {[%emt 0:03:56]} Be8 {[%emt 0:02:12]} 29. a3 {[%emt 0:00:30]} Bh5 {[%emt 0:00:33]} 30. Re1 {[%emt 0:01:22]} Bg4 {[%emt 0:01:52]} 31. h3 {[%emt 0:03:18]} Bh5 {[%emt 0:00:57]} 32. Rg1 {[%emt 0:00:19]} Bg6 {[%emt 0:00:39]} 33. Kc1 {[%emt 0:01:01]} Bf7 {[%emt 0:01:43]} 34. g4 {[%emt 0:00:27]} g6 {[%emt 0:04:06]} 35. gxf5 {[%emt 0:05:36]} exf5 {[%emt 0:00:32]} 36. h4 {[%emt 0:01:40]} Kd7 {[%emt 0:05:40]} 37. Rd2 {[%emt 0:05:27]} Ke7 {[%emt 0:03:53]} 38. Nf3 {[%emt 0:06:18]} h6 {[%emt 0:01:37]} 39. Ne1 {[%emt 0:06:28]} R6b7 {[%emt 0:05:07]} 40. Ng2 {[%emt 0:00:00]} Rd7 {[%emt 0:00:00]} 41. Ne3 {[%emt 0:03:32]} d4 {[%emt 0:13:54]} 42. Rgd1 {[%emt 0:24:45]} d3 {[%emt 0:01:47]} 43. Nc2 {[%emt 0:04:08]} Rbd8 {[%emt 0:06:05]} 1/2-1/2

[Event "FIDE WCCC G12 2018"]
[Site "Santiago de Compostela"]
[Date "2018.11.14"]
[Round "10"]
[White "Boramanikar Tanisha S"]
[Black "Omonova, Umida"]
[Result "0-1"]
[ECO "B34"]
[WhiteElo "1716"]
[BlackElo "1854"]
[Annotator "NA RC"]
[PlyCount "112"]
[EventDate "2018.11.04"]
[EventType "swiss"]
[EventCountry "ESP"]
[SourceTitle "playchess.com"]
[Source "ChessBase"]
[SourceQuality "1"]
[TimeControl "40/5400+30:1800+30"]

{[%evp 18,107,45,49,39,14,51,15,35,14,0,2,18,0,26,-47,-42,32767,32767,32767,-8,-11,-3,-14,-26,-22,-17,32767,-48,-54,-72,-70,-54,32767,-91,-105,-89,32767,32767,-95,-86,32767,-50,-72,32767,32767,-35,-54,-62,-92,-25,-72,-46,-56,32767,-108,32767,-105,-75,-58,-68,32767,-218,-261,-253,-210,-230,-203,-258,32767,-206,-207,-187,32767,-321,-330,-404,32767,-574,-611,-606,-499,-630,-650,-657,-665,-526,-448,-486,-1080,-1572,-29992]} 1. e4 {[%emt 0:00:00]} c5 {[%emt 0:00:17]} 2. Nf3 {[%emt 0:00:11]} Nc6 {[%emt 0:00:10]} 3. d4 {[%emt 0:00:15]} cxd4 {[%emt 0:00:15]} 4. Nxd4 {[%emt 0:00:22]} g6 {[%emt 0:00:10]} 5. Nc3 {[%emt 0:00:28]} Bg7 {[%emt 0:00:22]} 6. Nxc6 {[%emt 0:00:38]} bxc6 {[%emt 0:00:19]} 7. Bc4 {[%emt 0:00:38]} d6 {[%emt 0:04:27]} 8. Qf3 {[%emt 0:01:17] B34: Sicilian: Accelerated Dragon with 5 Nc3: sidelines} e6 {[%emt 0:03:52]} (8... Nf6 9. e5 dxe5 10. Qxc6+ Bd7 11. Qa6 O-O 12. O-O Qb8 13. Bb3 Rc8 14. Bg5 e6 15. Rad1 Bc6 {1-0 (30) Zhang,P (2649)-Inarkiev,E (2663) Nizhnij Novgorod 2007 CBM 120 [Reeh,O]}) 9. O-O {[%emt 0:03:17]} Ne7 {[%emt 0:02:16]} 10. Bg5 {[%emt 0:04:10]} O-O {[%emt 0:01:42]} 11. Bf6 {[%emt 0:03:07]} d5 {[%emt 0:04:02]} 12. Rad1 {[%emt 0:06:26]} Bb7 $146 {[%emt 0:01:11]} ({Predecessor:} 12... Qc7 13. Bd3 Qb8 14. Ne2 e5 15. b3 d4 {0-1 (30) Smykowski,M (1924)-Lunkiewicz,D (2107) Poland 2007}) 13. Rfe1 {[%emt 0:02:51]} Bxf6 {[%emt 0:01:35]} 14. Qxf6 {[%emt 0:00:23]} Nc8 {[%emt 0:00:16]} 15. Qe5 {[%emt 0:06:13]} Qd6 {[%emt 0:03:22]} 16. exd5 {[%emt 0:05:15]} (16. Qxd6 $11 Nxd6 17. Bd3) 16... Qxe5 {[%emt 0:00:15]} 17. Rxe5 {[%emt 0:00:10]} cxd5 {[%emt 0:00:06]} 18. Bf1 {[%emt 0:02:21]} Bc6 {[%emt 0:01:21]} 19. Ne2 {[%emt 0:08:11]} Nd6 {[%emt 0:01:52]} 20. Nd4 {[%emt 0:00:51]} Rfc8 {[%emt 0:00:20]} 21. Ree1 {[%emt 0:04:13]} a5 {[%emt 0:00:40]} 22. Rd3 {[%emt 0:06:20]} Bb5 {[%emt 0:03:55]} 23. Nxb5 {[%emt 0:03:19]} Nxb5 {[%emt 0:00:04]} 24. Rd2 {[%emt 0:01:02]} Nd6 {[%emt 0:00:27]} 25. a4 {[%emt 0:05:49]} Ne4 {[%emt 0:01:59]} 26. Rde2 {[%emt 0:00:41]} Rc7 {[%emt 0:00:30]} 27. f3 {[%emt 0:02:52]} Nd6 {[%emt 0:01:28]} 28. Rf2 {[%emt 0:02:42]} Rac8 {[%emt 0:08:09]} 29. Bd3 {[%emt 0:00:31]} Nc4 {[%emt 0:02:37]} 30. b3 {[%emt 0:01:04]} Nd6 {[%emt 0:02:35]} 31. g4 {[%emt 0:00:53]} Rc3 {[%emt 0:03:40]} 32. Kg2 {[%emt 0:02:07]} R8c7 {[%emt 0:01:26]} 33. Ree2 {[%emt 0:01:10]} Re7 {[%emt 0:02:11]} (33... Nb7 $17) 34. Re1 {[%emt 0:06:13]} (34. f4 $11) 34... e5 {[%emt 0:01:40]} 35. Rfe2 {[%emt 0:00:38]} f6 {[%emt 0:00:14]} 36. Re3 {[%emt 0:02:40]} Kg7 {[%emt 0:00:57]} 37. Kf2 {[%emt 0:02:57] [#]} e4 $1 {[%emt 0:01:23]} 38. fxe4 {[%emt 0:02:32]} dxe4 {[%emt 0:00:06]} 39. R3e2 {[%emt 0:01:02]} f5 {[%emt 0:00:15]} 40. gxf5 {[%emt 0:00:00]} gxf5 {[%emt 0:00:00]} 41. Rd1 {[%emt 0:05:24]} Kf6 {[%emt 0:01:37]} 42. Ba6 {[%emt 0:00:43]} Ke5 {[%emt 0:01:09]} 43. Ke1 {[%emt 0:03:40]} e3 {[%emt 0:01:36]} 44. Rg2 {[%emt 0:01:33] [#]} Ne4 $1 {[%emt 0:01:24]} 45. Bd3 {[%emt 0:02:14]} f4 {[%emt 0:03:33]} 46. Ke2 {[%emt 0:01:37] [#]} h6 $1 {[%emt 0:04:59]} 47. Rg6 {[%emt 0:01:38]} Nf2 {[%emt 0:00:40]} 48. Rf1 {[%emt 0:01:49]} Nxd3 {[%emt 0:00:44]} 49. cxd3 {[%emt 0:00:05]} Rc2+ {[%emt 0:10:08]} 50. Kf3 {[%emt 0:00:15]} Rxh2 {[%emt 0:00:58]} 51. Ra6 {[%emt 0:00:29]} Rh3+ {[%emt 0:15:09]} 52. Ke2 {[%emt 0:00:20]} Kf5 {[%emt 0:00:37]} 53. Rxa5+ {[%emt 0:00:46]} (53. Ra8 $142 Rh2+ 54. Kf3) 53... Kg4 {[%emt 0:00:08]} 54. Ra8 {[%emt 0:00:34]} Rh2+ {[%emt 0:01:40]} 55. Ke1 {[%emt 0:00:10]} Rc7 {[%emt 0:00:30]} 56. Rg8+ {[%emt 0:00:58]} Kh5 {[%emt 0:00:13]} 0-1

[Event "FIDE WCCC G12 2018"]
[Site "Santiago de Compostela"]
[Date "2018.11.14"]
[Round "10"]
[White "Denic, Hana"]
[Black "Wagner, Margarethe"]
[Result "1-0"]
[ECO "B90"]
[WhiteElo "1636"]
[BlackElo "1766"]
[Annotator "NA RC"]
[PlyCount "81"]
[EventDate "2018.11.04"]
[EventType "swiss"]
[EventCountry "ESP"]
[SourceTitle "playchess.com"]
[Source "ChessBase"]
[SourceQuality "1"]
[TimeControl "40/5400+30:1800+30"]

1. e4 {[%emt 0:00:00]} c5 {[%emt 0:00:00]} 2. Nf3 {[%emt 0:00:00]} d6 {[%emt 0:00:00]} 3. d4 {[%emt 0:00:03]} cxd4 {[%emt 0:00:09]} 4. Nxd4 {[%emt 0:00:10]} Nf6 {[%emt 0:00:13]} 5. Nc3 {[%emt 0:00:21]} a6 {[%emt 0:00:46]} 6. Be3 {[%emt 0:01:02]} e5 {[%emt 0:00:46]} 7. Nb3 {[%emt 0:00:21]} Be6 {[%emt 0:00:44]} 8. Qd2 {[%emt 0:01:59]} Be7 {[%emt 0:02:48]} 9. f3 {[%emt 0:01:47]} h5 {[%emt 0:01:18]} 10. O-O-O {[%emt 0:01:45]} Nbd7 {[%emt 0:00:42]} 11. h3 {[%emt 0:01:31]} h4 {[%emt 0:01:30]} 12. Kb1 {[%emt 0:02:50]} Rc8 {[%emt 0:02:15]} 13. Bd3 {[%emt 0:04:48]} b5 {[%emt 0:02:30]} 14. Ne2 {[%emt 0:06:34]} Qc7 {[%emt 0:04:06]} 15. Bg5 {[%emt 0:07:10]} Nb6 {[%emt 0:18:00]} 16. Qe1 {[%emt 0:21:50]} Nc4 {[%emt 0:08:36]} 17. Bxf6 {[%emt 0:06:30]} Bxf6 {[%emt 0:02:19]} 18. Qf2 {[%emt 0:00:41]} Bg5 {[%emt 0:13:04]} 19. f4 {[%emt 0:03:04]} Bf6 {[%emt 0:02:31]} 20. c3 {[%emt 0:03:04]} a5 {[%emt 0:06:27]} 21. g4 {[%emt 0:04:42]} hxg3 {[%emt 0:01:36]} 22. Qxg3 {[%emt 0:02:15]} g6 {[%emt 0:01:57]} 23. Bc2 {[%emt 0:05:10]} a4 {[%emt 0:02:31]} 24. Nd2 {[%emt 0:00:51]} Nxd2+ {[%emt 0:01:52]} 25. Rxd2 {[%emt 0:00:11]} Qc4 {[%emt 0:03:01]} 26. b3 {[%emt 0:04:18]} axb3 {[%emt 0:01:01]} 27. axb3 {[%emt 0:00:13]} Qc6 {[%emt 0:00:32]} 28. Rhd1 {[%emt 0:02:24]} Rxh3 {[%emt 0:03:06]} 29. Qf2 {[%emt 0:01:56]} Rd8 {[%emt 0:01:43]} 30. f5 {[%emt 0:02:34]} gxf5 {[%emt 0:00:42]} 31. exf5 {[%emt 0:00:20]} Rf3 {[%emt 0:03:26]} 32. Qg2 {[%emt 0:00:47]} Bc8 {[%emt 0:04:27]} 33. Rd5 {[%emt 0:00:48]} Re3 {[%emt 0:02:34]} 34. Rxe5+ {[%emt 0:03:23]} Rxe5 {[%emt 0:02:35]} 35. Qxc6+ {[%emt 0:00:13]} Bd7 {[%emt 0:01:11]} 36. Qf3 {[%emt 0:01:54]} Ke7 {[%emt 0:01:10]} 37. Nf4 {[%emt 0:02:42]} Kf8 {[%emt 0:01:07]} 38. Nd5 {[%emt 0:01:08]} Bc6 {[%emt 0:00:20]} 39. Be4 {[%emt 0:02:13]} Bg7 {[%emt 0:01:12]} 40. f6 {[%emt 0:00:00]} Bh6 {[%emt 0:00:00]} 41. Rh1 1-0